fUST/lending_fUST_20240503
["ID","MTS","AMOUNT","RATE_DAILY","PERIOD"]
[325315833,1714709434228,-155.741757,0.00037799,2]
[325315834,1714709434238,-151.0,0.00037799,2]
[325315835,1714709434247,-297.769949,0.00037799,2]
[325315836,1714709434256,-153.981484,0.00037799,2]
[325315837,1714709434266,-151.0,0.00037799,2]
[325315838,1714709434275,-213.655671,0.00037799,2]
[325315839,1714709434284,-213.655671,0.00037799,2]
[325315840,1714709434293,-151.0,0.00037799,2]
[325315841,1714709434308,-581.09928,0.00037799,2]
[325315842,1714709434317,-581.09928,0.00037799,2]
[325315843,1714709434327,-348.893913,0.00037799,2]
[325315844,1714709434337,-348.893913,0.00037799,2]
[325315845,1714709434348,-249.142801,0.00037799,2]
[325315846,1714709434357,-249.142801,0.00037799,2]
[325315847,1714709434368,-160.0,0.00037803,7]
[325315848,1714709434377,-210.9874459,0.00037808,2]
[325315849,1714709434387,-608.08364,0.00037824,2]
[325315850,1714709434399,-150.66852924,0.00037839,2]
[325315851,1714709434408,-187.56486258,0.00037864,2]
[325315852,1714709434418,-1064.7,0.00037897,7]
[325315853,1714709434427,-1064.7,0.00037897,10]
[325315854,1714709434437,-1064.7,0.00037897,13]
[325315855,1714709434446,-1064.7,0.00037897,16]
[325315856,1714709434460,-1064.7,0.00037897,19]
[325315857,1714709434470,-266.57861914,0.00037898,4]
[325315858,1714709434479,-5848.68095821,0.00037898,4]
[325315859,1714709434489,-2000.0,0.000379,2]
[325315860,1714709434499,-249.142801,0.000379,2]
[325315861,1714709434509,-249.142801,0.000379,2]
[325315862,1714709434519,-608.08364,0.0003796,2]
[325315863,1714709434530,-897.70374843,0.0003799,10]
[325315864,1714709434540,-151.0,0.00037999,2]
[325315865,1714709434550,-1064.7,0.00037999,22]
[325315866,1714709434559,-3718.77789059,0.00038,2]
[325315867,1714709434582,-37319.22210941,0.00038,2]
[325315868,1714709434592,-151.0,0.00038,2]
[325315869,1714709434602,-156.0,0.00038,2]
[325315870,1714709434612,-213.655671,0.00038,2]
[325315871,1714709434622,-213.655671,0.00038,2]
[325315872,1714709434631,-581.09928,0.00038,2]
[325315873,1714709434641,-581.09928,0.00038,2]
[325315874,1714709434651,-348.893913,0.00038,2]
[325315875,1714709434660,-348.893913,0.00038,2]
[325315876,1714709434671,-249.142801,0.00038,2]
[325315877,1714709434680,-249.142801,0.00038,2]
[325315878,1714709434690,-620.01118824,0.00038002,2]
[325315879,1714709434699,-160.0,0.00038015,8]
[325315880,1714709434708,-153.0,0.00038082,2]
[325315881,1714709434717,-608.08365,0.00038096,2]
[325315882,1714709434726,-160.0,0.00038226,9]
[325315883,1714709434736,-608.08364,0.00038232,2]
[325315884,1714709434746,-7602.50905312,0.00038299,5]
[325316046,1714709443817,758.60062169,0.00022135,2]
[325316085,1714710436135,-2000.0,0.00022135,2]
[325316086,1714710436156,-757.41261472,0.00025,2]
[325316087,1714710436176,-166.666666,0.00025241,2]
[325316088,1714710436196,-166.666666,0.00025929,2]
[325316089,1714710436216,-166.666666,0.00026617,2]
[325316090,1714710436236,-493.0,0.00026639,2]
[325316091,1714710436256,-150.0,0.00026639,2]
[325316092,1714710436276,-166.666666,0.00026986,2]
[325316093,1714710436296,-166.666666,0.00027306,2]
[325316094,1714710436316,-166.666666,0.00027994,2]
[325316095,1714710436336,-9381.55295255,0.00028143,2]
[325316096,1714710436357,-5000.0,0.00028144,2]
[325316097,1714710436377,-990.6611745,0.00028145,2]
[325316098,1714710436397,-257.1,0.00028146,3]
[325316099,1714710436418,-620.00055942,0.00028382,2]
[325316100,1714710436438,-314.812113,0.00028493,2]
[325316101,1714710436459,-287.309527,0.00028493,2]
[325316102,1714710436479,-166.666666,0.00028682,2]
[325316103,1714710436501,-257.1,0.00029451,3]
[325316104,1714710436521,-493.0,0.00029639,2]
[325316105,1714710436541,-150.0,0.00029639,2]
[325316106,1714710436562,-1967.23254635,0.0003,7]
[325316107,1714710436581,-176.62653573,0.00030754,4]
[325316108,1714710436604,-257.1,0.00030755,5]
[325316109,1714710436624,-221.07032047,0.00031251,4]
[325316110,1714710436650,-257.1,0.0003206,5]
[325316111,1714710436670,-493.0,0.00032639,2]
[325316112,1714710436690,-150.0,0.00032639,2]
[325316113,1714710436835,-257.1,0.00033365,7]
[325316114,1714710436859,-156.56384195,0.000338,2]
[325316115,1714710436879,-156.56384194,0.000338,2]
[325316116,1714710436900,-314.812113,0.00034203,2]
[325316117,1714710436921,-287.309527,0.00034203,2]
[325316118,1714710436942,-257.1,0.00034669,7]
[325316119,1714710436962,-9632.59,0.0003499,3]
[325316120,1714710436982,-163.45,0.00034999,2]
[325316121,1714710437004,-163.45,0.00034999,2]
[325316122,1714710437024,-163.45,0.00034999,2]
[325316123,1714710437044,-163.45,0.00034999,2]
[325316124,1714710437064,-163.45,0.00034999,2]
[325316125,1714710437084,-163.45,0.00034999,2]
[325316126,1714710437104,-1159.31784077,0.00035,4]
[325316127,1714710437124,-17129.05500631,0.00035,2]
[325316129,1714710551085,-714.56650019,0.00024382,2]
[325316131,1714710607140,620.22379283,0.000237,2]
[325316132,1714710608203,620.01118964,0.00024885,2]
[325316133,1714710609321,620.00055948,0.00026129,2]
[325316134,1714710616567,493.0,0.00026639,2]
[325316157,1714710632039,-150.0,0.00028166,3]
[325316159,1714710632050,-166.666666,0.00029317,2]
[325316160,1714710632059,-150.0,0.00029469,3]
[325316161,1714710632068,-166.666666,0.00030116,2]
[325316162,1714710632078,-10000.0,0.00030259,120]
[325316163,1714710632087,-150.0,0.00030772,5]
[325316164,1714710632098,-166.666666,0.00030916,2]
[325316165,1714710632107,-166.666666,0.00031715,2]
[325316166,1714710632116,-150.0,0.00032074,5]
[325316167,1714710632126,-166.666666,0.00032514,2]
[325316168,1714710632136,-166.666666,0.00033314,2]
[325316169,1714710632146,-150.0,0.00033377,7]
[325316170,1714710632155,-176.62653573,0.00033799,4]
[325316171,1714710632164,-156.56384194,0.000338,2]
[325316172,1714710632173,-150.0,0.0003468,7]
[325316173,1714710632182,-185.56032064,0.00034899,2]
[325316174,1714710632191,-12604.77364066,0.00034989,4]
[325316175,1714710632200,-298.32,0.0003499,3]
[325316176,1714710632209,-15039.68,0.0003499,3]
[325316177,1714710632219,-5000.0,0.00034999,4]
[325316178,1714710632228,-1159.31784077,0.00035,4]
[325316179,1714710632238,-598.33465811,0.00035,2]
[325316180,1714710632247,-92533.57799369,0.00035,2]
[325316181,1714710632258,-1013.550881,0.00035616,120]
[325316182,1714710632267,-588.0,0.000359,2]
[325316183,1714710632276,-185.56032064,0.00035926,2]
[325316184,1714710632286,-150.0,0.00035983,14]
[325316185,1714710632295,-350.0,0.00036469,4]
[325316186,1714710632304,-608.08364,0.0003647,2]
[325316187,1714710632314,-10000.0,0.000365,20]
[325316188,1714710632325,-7708.23,0.00036763,2]
[325316189,1714710632336,-608.08364,0.00036764,2]
[325316190,1714710632346,-185.56032064,0.00036954,2]
[325316191,1714710632355,-10670.17865673,0.00037,5]
[325316192,1714710632366,-1980.26055312,0.00037057,2]
[325316193,1714710632376,-608.08365,0.00037058,2]
[325316194,1714710632386,-150.0,0.00037286,14]
[325316195,1714710632395,-608.08364,0.00037352,2]
[325316196,1714710632405,-608.08365,0.00037647,2]
[325316197,1714710632415,-608.08364,0.00037941,2]
[325316198,1714710632425,-185.56032064,0.00037981,2]
[325316199,1714710632434,-1000.0,0.00037999,2]
[325316200,1714710632444,-1000.0,0.00037999,2]
[325316201,1714710632454,-1000.0,0.00037999,2]
[325316202,1714710632463,-1000.0,0.00037999,2]
[325316203,1714710632473,-1000.0,0.00037999,2]
[325316204,1714710632482,-1000.0,0.00037999,2]
[325316205,1714710632491,-1000.0,0.00037999,2]
[325316206,1714710632500,-1000.0,0.00037999,2]
[325316207,1714710632509,-156.0,0.00038,2]
[325316208,1714710632520,-608.08365,0.00038235,2]
[325316209,1714710632529,-7708.23,0.00038373,2]
[325316210,1714710632538,-5000.0,0.00038374,2]
[325316211,1714710632548,-816.09327311,0.00038398,2]
[325316212,1714710632557,-1000.0,0.00038398,2]
[325316213,1714710632567,-1000.0,0.00038398,2]
[325316214,1714710632576,-159.311331,0.00038398,4]
[325316215,1714710632586,-2000.0,0.00038398,2]
[325316216,1714710632595,-300.11164802,0.00038399,4]
[325316217,1714710632605,-7708.23,0.00038399,2]
[325316218,1714710632614,-7708.23,0.00038399,2]
[325316219,1714710632624,-55555.0,0.000384,5]
[325316220,1714710632633,-406.769496,0.000384,2]
[325316221,1714710632642,-209.336348,0.000384,2]
[325316222,1714710632652,-209.336348,0.000384,2]
[325316223,1714710632665,-151.0,0.000384,2]
[325316224,1714710632676,-394.961052,0.000384,2]
[325316225,1714710632685,-394.961052,0.000384,2]
[325316226,1714710632694,-394.961052,0.000384,2]
[325316227,1714710632708,-394.961052,0.000384,2]
[325316228,1714710632717,-234.73,0.0003847,35]
[325316229,1714710632726,-150.5,0.0003847,35]
[325316230,1714710632735,-151.26,0.0003847,35]
[325316231,1714710632746,-150.5,0.0003847,35]
[325316232,1714710632756,-972.0,0.0003847,35]
[325316233,1714710632766,-155.1,0.0003847,35]
[325316234,1714710632775,-150.5,0.0003848,35]
[325316235,1714710632785,-150.5,0.0003848,35]
[325316236,1714710632794,-150.5,0.0003848,35]
[325316237,1714710632804,-150.5,0.0003848,35]
[325316238,1714710632814,-972.0,0.0003848,35]
[325316239,1714710632824,-150.5,0.0003848,35]
[325316240,1714710632833,-150.5,0.0003849,35]
[325316241,1714710632843,-212.56,0.0003849,35]
[325316242,1714710632854,-150.5,0.0003849,35]
[325316243,1714710632863,-150.5,0.0003849,35]
[325316244,1714710632872,-150.5,0.0003849,35]
[325316245,1714710632881,-972.0,0.0003849,35]
[325316246,1714710632890,-150.5,0.0003849,35]
[325316247,1714710632899,-154.73694719,0.00038497,4]
[325316248,1714710632909,-8534.85091698,0.00038498,4]
[325316249,1714710632919,-214.12991772,0.00038498,2]
[325316250,1714710632929,-163.46,0.00038498,2]
[325316251,1714710633033,-999.0,0.00038498,7]
[325316252,1714710633043,-999.0,0.00038498,10]
[325316253,1714710633052,-999.0,0.00038498,13]
[325316254,1714710633061,-999.0,0.00038498,16]
[325316255,1714710633071,-999.0,0.00038498,19]
[325316256,1714710633080,-999.0,0.00038498,22]
[325316257,1714710633090,-999.0,0.00038498,25]
[325316258,1714710633100,-209.336348,0.00038498,2]
[325316259,1714710633110,-209.336348,0.00038498,2]
[325316260,1714710633123,-394.961052,0.00038498,2]
[325316261,1714710633133,-1000.0,0.00038499,2]
[325316262,1714710633143,-1000.0,0.00038499,2]
[325316263,1714710633151,-1000.0,0.00038499,2]
[325316264,1714710633160,-1006.3564947,0.00038499,2]
[325316265,1714710633169,-151.0,0.00038499,2]
[325316266,1714710633178,-151.0,0.00038499,2]
[325316267,1714710633187,-406.769496,0.00038499,2]
[325316268,1714710633196,-999.0,0.00038499,28]
[325316269,1714710633206,-999.0,0.00038499,31]
[325316270,1714710633215,-999.0,0.00038499,34]
[325316271,1714710633224,-999.0,0.00038499,37]
[325316272,1714710633234,-999.0,0.00038499,40]
[325316273,1714710633243,-999.0,0.00038499,43]
[325316274,1714710633253,-999.0,0.00038499,46]
[325316275,1714710633263,-999.0,0.00038499,49]
[325316276,1714710633273,-999.0,0.00038499,52]
[325316277,1714710633282,-999.0,0.00038499,55]
[325316278,1714710633291,-999.0,0.00038499,58]
[325316279,1714710633302,-999.0,0.00038499,61]
[325316280,1714710633311,-183.65264697,0.00038499,64]
[325316281,1714710633320,-209.336348,0.00038499,2]
[325316282,1714710633330,-209.336348,0.00038499,2]
[325316283,1714710633340,-209.336348,0.00038499,2]
[325316284,1714710633349,-209.336348,0.00038499,2]
[325316285,1714710633359,-209.336348,0.00038499,2]
[325316286,1714710633368,-209.336348,0.00038499,2]
[325316287,1714710633378,-209.336348,0.00038499,2]
[325316288,1714710633388,-209.336348,0.00038499,2]
[325316289,1714710633397,-7708.23,0.00038499,2]
[325316290,1714710633407,-7708.23,0.00038499,2]
[325316291,1714710633416,-7708.23,0.00038499,2]
[325316292,1714710633425,-7708.23,0.00038499,2]
[325316293,1714710633435,-7708.23,0.00038499,2]
[325316294,1714710633444,-7708.23,0.00038499,2]
[325316295,1714710633454,-7708.23,0.00038499,2]
[325316296,1714710633464,-7708.23,0.00038499,2]
[325316297,1714710633473,-7708.23,0.00038499,2]
[325316298,1714710633483,-7708.23,0.00038499,2]
[325316299,1714710633492,-7708.23,0.00038499,2]
[325316300,1714710633502,-7708.23,0.00038499,2]
[325316301,1714710633512,-7708.23,0.00038499,2]
[325316302,1714710633521,-7708.23,0.00038499,2]
[325316303,1714710633531,-7708.23,0.00038499,2]
[325316304,1714710633539,-7708.23,0.00038499,2]
[325316305,1714710633549,-7708.23,0.00038499,2]
[325316306,1714710633559,-7708.23,0.00038499,2]
[325316307,1714710633569,-7708.23,0.00038499,2]
[325316308,1714710633579,-7708.32429991,0.00038499,2]
[325316309,1714710633589,-394.961052,0.00038499,2]
[325316310,1714710633599,-394.961052,0.00038499,2]
[325316311,1714710633609,-394.961052,0.00038499,2]
[325316312,1714710633618,-394.961052,0.00038499,2]
[325316313,1714710633628,-32264.87870824,0.000385,60]
[325316353,1714710638315,-972.0795421,0.00033799,4]
[325316355,1714710638327,-358.94314916,0.00033799,4]
[325316357,1714710638337,-1967.23254635,0.00034897,7]
[325316359,1714710638346,-5612.76780864,0.0003499,3]
[325316483,1714711549115,-7966.40091188,0.00022721,2]
[325316487,1714711644095,-490.45398213,0.00022721,2]
[325316488,1714711644115,-166.666666,0.00026986,2]
[325316489,1714711644136,-2931.6237375,0.00027,2]
[325316490,1714711769143,-6449.92921505,0.00027,2]
[325316491,1714711769162,-150.0,0.0002775,3]
[325316492,1714711769431,-990.6611745,0.00028397,2]
[325316493,1714711769450,-493.0,0.00028398,2]
[325316494,1714711769469,-150.0,0.00028398,2]
[325316495,1714711769489,-168.419087,0.00028493,2]
[325316496,1714711769510,-150.0,0.00029091,3]
[325316497,1714711769530,-166.666666,0.00029106,2]
[325316498,1714711769550,-161.442647,0.00029542,2]
[325316499,1714711769570,-166.666666,0.00029899,2]
[325316500,1714711769590,-1967.23254635,0.0003,7]
[325316501,1714711769610,-150.0,0.00030431,5]
[325316502,1714711769630,-166.666666,0.00030693,2]
[325316503,1714711769649,-166.666666,0.00031486,2]
[325316504,1714711769670,-150.0,0.00031772,5]
[325316505,1714711771360,176.62653573,0.0003,4]
[325316506,1714711809121,150.0,0.00027759,3]
[325316507,1714711810414,150.0,0.00029099,3]
[325316508,1714711811105,150.0,0.00030439,5]
[325316509,1714711811714,150.0,0.00031778,5]
[325316529,1714711832439,-166.666666,0.0003228,2]
[325316531,1714711832448,-166.666666,0.00033073,2]
[325316533,1714711832457,-168.419087,0.00034203,2]
[325316535,1714711832467,-968.96259758,0.00035,4]
[325316537,1714711832476,-760.16316,0.00035616,120]
[325316539,1714711832486,-350.0,0.00036,4]
[325316541,1714711832494,-608.08364,0.00036465,2]
[325316543,1714711832504,-10000.0,0.000365,20]
[325316545,1714711832515,-10670.17865673,0.00037098,5]
[325316547,1714711832524,-1980.26055312,0.00037099,2]
[325316549,1714711832533,-591.0,0.000371,2]
[325316551,1714711832543,-608.08364,0.00037172,2]
[325316553,1714711832552,-624.47532521,0.00037311,2]
[325316555,1714711832563,-500.0,0.00037499,120]
[325316557,1714711832572,-500.0,0.00037499,120]
[325316559,1714711832582,-500.0,0.00037499,120]
[325316561,1714711832592,-500.0,0.00037499,120]
[325316564,1714711832602,-307.66,0.00037499,120]
[325316566,1714711832611,-608.08365,0.00037879,2]
[325316568,1714711832621,-7637.68,0.00037989,3]
[325316570,1714711832630,-11924.96,0.00037989,3]
[325316572,1714711832639,-248.08,0.00037989,3]
[325316574,1714711832648,-4598.6373137,0.00037998,4]
[325316576,1714711832658,-693.7301281,0.00037998,4]
[325316578,1714711832667,-156.07936896,0.00037998,4]
[325316593,1714711832795,-979.6960558,0.00037998,4]
[325316596,1714711832809,-1331.02269126,0.00037998,4]
[325316598,1714711832820,-199.02698559,0.00037998,4]
[325316599,1714711832829,-1967.23254635,0.00037998,7]
[325316602,1714711832839,-12604.77364066,0.00037998,4]
[325316604,1714711832849,-59114.32805018,0.00037999,4]
[325316850,1714712752113,-166.666666,0.00025745,2]
[325316851,1714712752135,-47.30893219,0.00026447,2]
[325316852,1714712950254,-166.666666,0.00026304,2]
[325316853,1714712950275,-757.41261472,0.00026447,2]
[325316854,1714712950296,-5000.0,0.00027,2]
[325316855,1714712950316,-9381.55295255,0.00027,2]
[325316856,1714712950342,-166.666666,0.00027022,2]
[325316857,1714712950362,-166.666666,0.00027739,2]
[325316858,1714712950383,-150.0,0.00027814,3]
[325316859,1714712960116,-493.0,0.00028398,2]
[325316860,1714712960136,-166.666666,0.00028456,2]
[325316861,1714712960156,-160.431796,0.00028493,2]
[325316862,1714712960174,-844.06899928,0.00029,2]
[325316863,1714712960195,-150.0,0.00029149,3]
[325316864,1714712960216,-166.666666,0.00029173,2]
[325316865,1714712960234,-206.73,0.0002989,3]
[325316866,1714712960253,-620.23,0.0002989,3]
[325316867,1714712960272,-166.666666,0.0002989,2]
[325316868,1714712960292,-40970.32616989,0.000299,2]
[325316875,1714712963386,757.41261472,0.00026447,2]
[325316876,1714712985363,757.41261472,0.00026447,2]
[325316877,1714713010248,150.0,0.00027862,3]
[325317912,1714713953301,-355.63295154,0.00024382,2]
[325317914,1714714148206,-358.93354865,0.00024382,2]
[325317915,1714714148226,-166.666666,0.00026016,2]
[325317916,1714714148245,-162.045559,0.00026245,2]
[325317917,1714714148267,-166.666666,0.00026725,2]
[325317918,1714714148286,-166.666666,0.00026986,2]
[325317919,1714714148306,-9381.55295255,0.00027,2]
[325317920,1714714148327,-5000.0,0.00027,2]
[325317921,1714714148347,-620.22376626,0.00027276,2]
[325317922,1714714148367,-166.666666,0.00027434,2]
[325317923,1714714148387,-154.7389589,0.00027862,2]
[325317924,1714714148407,-439.1,0.00027877,3]
[325317925,1714714156078,-221.07032047,0.00028143,2]
[325317926,1714714156098,-166.666666,0.00028144,2]
[325317927,1714714156119,-541.909476,0.00028493,2]
[325317928,1714714156144,-159.616405,0.00028493,2]
[325317929,1714714156165,-173.37794404,0.0002864,2]
[325317930,1714714160122,-446.63324427,0.0002864,2]
[325317931,1714714160146,-166.666666,0.00028853,2]
[325317932,1714714160167,-439.1,0.00029206,3]
[325317933,1714714160189,-493.0,0.00029288,2]
[325317934,1714714160209,-150.0,0.00029288,2]
[325317935,1714714160233,-166.666666,0.00029562,2]
[325317936,1714714160255,-28260.29339736,0.000299,2]
[325317937,1714714160275,-2000.0,0.0003,2]
[325317938,1714714160296,-191.0,0.0003,2]
[325317939,1714714160317,-1967.23254635,0.0003,7]
[325317940,1714714160339,-176.62653573,0.00030533,4]
[325317941,1714714160360,-439.1,0.00030535,5]
[325317942,1714714169747,166.666666,0.00026986,2]
[325317943,1714714184443,329.3,0.00027882,3]
[325317944,1714714185115,329.3,0.00029211,3]
[325317945,1714714185831,329.3,0.00030539,5]
[325317946,1714714208686,247.0,0.00027882,3]
[325317947,1714714209496,247.0,0.00029211,3]
[325317948,1714714210113,247.0,0.00030539,5]
[325317949,1714714211736,656.34938728,0.00031251,2]
[325317968,1714714232066,-247.0,0.00031868,5]
[325317969,1714714232075,-447.45061743,0.00032272,4]
[325317970,1714714232084,-620.01118824,0.00032585,2]
[325317971,1714714232094,-247.0,0.00033197,7]
[325317972,1714714232103,-380.54213809,0.00034,2]
[325317973,1714714232112,-541.909476,0.00034203,2]
[325317974,1714714232122,-247.0,0.00034525,7]
[325317975,1714714232132,-1159.31784077,0.00035,4]
[325317976,1714714232140,-2000.0,0.00035616,7]
[325317977,1714714232149,-505.28924702,0.00035616,8]
[325317978,1714714232158,-726.596335,0.00035616,120]
[325317979,1714714232168,-247.0,0.00035854,14]
[325317981,1714714232179,-1967.23254635,0.00036467,7]
[325317983,1714714232188,-608.08364,0.00036468,2]
[325317984,1714714232197,-167.523964,0.00036593,2]
[325317985,1714714232207,-10182.0,0.00037,30]
[325317986,1714714232216,-699.73523,0.00037,2]
[325317988,1714714232225,-10000.0,0.00037,120]
[325317989,1714714232234,-1980.26055312,0.00037,2]
[325317991,1714714232243,-10670.17865673,0.00037,5]
[325317993,1714714232252,-298.06532079,0.00037079,2]
[325317995,1714714232261,-247.0,0.00037182,14]
[325317996,1714714232270,-154.67518212,0.00037238,4]
[325318002,1714714232399,-608.08365,0.00037351,2]
[325318003,1714714232408,-588.0,0.000374,2]
[325318004,1714714232418,-500.0,0.00037499,120]
[325318005,1714714232428,-558.08,0.00037499,120]
[325318006,1714714232437,-298.06532072,0.00037636,2]
[325318007,1714714232447,-445.43948424,0.00037743,2]
[325318008,1714714232457,-1000.0,0.0003785,2]
[325318009,1714714232466,-1000.0,0.00037863,2]
[325318010,1714714232476,-413.46,0.00037988,3]
[325318011,1714714232485,-8281.22,0.00037989,3]
[325318012,1714714232495,-9937.46,0.0003799,3]
[325318013,1714714232504,-164.93461645,0.00037998,4]
[325318014,1714714232513,-277.06453984,0.00037998,4]
[325318015,1714714232523,-186.76067351,0.00037998,4]
[325318016,1714714232532,-8179.33290272,0.00037998,4]
[325318017,1714714232541,-156.57803365,0.00037998,4]
[325318018,1714714232551,-295.47490809,0.00037998,2]
[325318019,1714714232560,-200.12142439,0.00037998,4]
[325318020,1714714232569,-2805.55983897,0.00037998,120]
[325318021,1714714232579,-241.05963326,0.00037998,4]
[325318022,1714714232588,-154.9792503,0.00037998,4]
[325318023,1714714232597,-190.0020275,0.00037998,2]
[325318024,1714714232607,-102.26795469,0.00037998,4]
[325318272,1714714248879,2000.0,0.00030539,2]
[325318273,1714714262163,150.0,0.00027882,3]
[325318274,1714714262796,150.0,0.00029211,3]
[325318275,1714714262879,2000.0,0.00030539,2]
[325318276,1714714263480,150.0,0.00030539,5]
[325318280,1714715014538,565.31689857,9.999e-05,2]
[325318283,1714715146495,-488.51147253,0.00020911,2]
[325318284,1714715146532,-154.67518212,0.00020913,2]
[325318285,1714715146553,-714.56650019,0.00023,2]
[325318286,1714715146573,-118.28134351,0.00026986,2]
[325318288,1714715197901,1492.55196417,9.999e-05,2]
[325318291,1714715232100,-48.38532249,0.00026986,2]
[325318292,1714715232122,-150.0,0.00027867,3]
[325318293,1714715232142,-159.554924,0.00028493,2]
[325318294,1714715232162,-160.431796,0.00028493,2]
[325318295,1714715232184,-150.0,0.00029197,3]
[325318296,1714715232205,-166.666666,0.00030087,2]
[325318297,1714715232225,-150.0,0.00030527,5]
[325318298,1714715232246,-166.666666,0.00030907,2]
[325318299,1714715232266,-166.666666,0.00031727,2]
[325318300,1714715232286,-6268.7358939,0.00031767,2]
[325318301,1714715232306,-150.0,0.00031857,5]
[325318302,1714715232327,-166.666666,0.00032548,2]
[325318303,1714715232346,-620.00055942,0.00032585,2]
[325318304,1714715232367,-150.0,0.00033187,7]
[325318305,1714715232386,-166.666666,0.00033368,2]
[325318306,1714715232531,-466.73173475,0.00034,4]
[325318307,1714715232554,-166.666666,0.00034188,2]
[325318308,1714715232575,-159.554924,0.00034521,2]
[325318309,1714715232596,-182.24326956,0.00034999,4]
[325318310,1714715232617,-1443.8375029,0.00035,10]
[325318311,1714715232638,-544.947251,0.00035616,120]
[325318312,1714715232658,-656.34938728,0.00036097,2]
[325318313,1714715232678,-189.0682312,0.00036098,4]
[325318314,1714715232698,-608.08364,0.00036468,2]
[325318315,1714715232719,-238.45225663,0.000369,2]
[325318316,1714715232739,-160.38820188,0.00037,5]
[325318317,1714715347098,-166.666666,0.00026986,2]
[325318318,1714715347120,-9381.55295255,0.00027,2]
[325318319,1714715347140,-176.62653573,0.00031251,4]
[325318320,1714715410621,150.0,0.00027863,3]
[325318321,1714715411980,150.0,0.00029193,3]
[325318322,1714715412687,150.0,0.00030524,5]
[325318377,1714715432363,-150.0,0.00031854,5]
[325318379,1714715432373,-150.0,0.00033184,7]
[325318381,1714715432383,-182.24326956,0.00034514,4]
[325318383,1714715432394,-150.0,0.00034515,7]
[325318386,1714715432403,-408.710438,0.00035616,120]
[325318388,1714715432412,-662.72596165,0.00036098,4]
[325318390,1714715432422,-608.08364,0.00036476,2]
[325318392,1714715432431,-10509.79045485,0.00037,5]
[325318394,1714715432441,-5000.0,0.00037,4]
[325318396,1714715432450,-153.0,0.00037123,2]
[325318398,1714715432459,-154.7942545,0.00037945,2]
[325318400,1714715432469,-6901.02,0.0003799,3]
[325318402,1714715432479,-5750.85,0.0003799,3]
[325318404,1714715432488,-145.57686807,0.00037998,4]
[325318406,1714715432498,-470.15553784,0.00037998,4]
[325318408,1714715432507,-186.81340607,0.00037998,4]
[325318410,1714715432516,-476.56233408,0.00037998,4]
[325318412,1714715432526,-815.4031969,0.00037998,37]
[325318414,1714715432535,-154.94195086,0.00037998,4]
[325318416,1714715432545,-212.26666393,0.00037998,4]
[325318418,1714715432555,-268.39433373,0.00037998,4]
[325318420,1714715432564,-1028.86219156,0.00037998,2]
[325318422,1714715432573,-242.09185154,0.00037998,4]
[325318423,1714715432582,-1816.51969192,0.00037998,2]
[325318425,1714715432591,-447.45061743,0.00037998,4]
[325318428,1714715432601,-631.13178222,0.00037998,7]
[325318430,1714715432611,-154.79738544,0.00037998,4]
[325318431,1714715432620,-155.42751009,0.00037998,4]
[325318434,1714715432630,-1106.25843292,0.00037998,4]
[325318436,1714715432640,-1576.98678225,0.00037998,4]
[325318438,1714715432650,-1104.04068716,0.00037998,4]
[325318440,1714715432659,-155.19280206,0.00037998,4]
[325318442,1714715432669,-285.21863007,0.00037998,4]
[325318444,1714715432678,-719.07241073,0.00037998,4]
[325318446,1714715432688,-1095.15602283,0.00037998,4]
[325318448,1714715432697,-566.4434062,0.00037998,4]